Cogmind - Beta 15 @@@ ROGUE MODE // 2025.10.02 @ 20:25:57 Player: pandag Result: Destroyed by MQ-RDC(R) with Subdweller Machine Gun Performance ------------- Evolutions (0) 0 Regions Visited (2) 400 Robots Destroyed (19) 95 Value Destroyed (419) 419 Prototype IDs (2) 40 Alien Tech Used (0) 0 Bonus (0) 0 TOTAL SCORE: 954 Bonus ------- None Cogmind --------- Core Integrity 0/250 Matter 237/300 Energy 250/250 System Corruption 5% Temperature Cool (70) Movement Treading (240) Ox1 Location -10/Subcaves Parts ------- > --- POWER (1) -------- Ion Engine > --- PROPULSION (2) --- Light Treads Aluminum Leg > --- UTILITY (2) ------ Large Storage Unit Signal Interpreter > --- WEAPON (2) ------- Assault Rifle Battle Rifle > --- INVENTORY (15) --- Ion Engine Ion Engine Light Ion Engine Light Treads Light Treads Aluminum Leg Structural Scanner Structural Scanner Sensor Array Improved Terrain Scanner Terrain Scan Processor Targeting Computer Light Assault Rifle Peak State ------------ > --- POWER ------------ Ion Engine > --- PROPULSION ------- Aluminum Leg Aluminum Leg > --- UTILITY ---------- Large Storage Unit Improved Terrain Scanner > --- WEAPON ----------- Assault Rifle Assault Rifle > --- INVENTORY -------- Ion Engine Ion Engine Light Ion Engine Light Treads Light Treads Light Treads Aluminum Leg Structural Scanner Structural Scanner Sensor Array Signal Interpreter Terrain Scan Processor Targeting Computer Small Laser Light Assault Rifle [Rating: 10] Favorites ----------- Power Ion Engine Engine Ion Engine Propulsion Aluminum Leg Treads Light Treads Leg Aluminum Leg Wheel Compact Wheel Utility Large Storage Unit Device Structural Scanner Storage Large Storage Unit Processor Signal Interpreter Weapon Assault Rifle Energy Gun EM Pulse Gun Ballistic Gun Assault Rifle Launcher Grenade Launcher Build | -11 -10 -10 ------- Run | Yrd Mat Sub Slots Evolved . | . . . Power . | . . . Propulsion . | . . . Utility . | . . . Weapon . | . . . Parts Attached 23 | 6 12 5 Power 3 | 1 2 . Engine 3 | 1 2 . Core . | . . . Reactor . | . . . Propulsion 8 | 2 5 1 Treads 1 | . . 1 Leg 4 | . 4 . Wheel 3 | 2 1 . Hover . | . . . Flight . | . . . Utility 6 | 1 2 3 Device 3 | . 1 2 Storage 2 | 1 1 . Processor 1 | . . 1 Hackware . | . . . Protection . | . . . Artifact . | . . . Weapon 6 | 2 3 1 Energy Gun 2 | 2 . . Energy Cannon . | . . . Ballistic Gun 3 | . 2 1 Ballistic Cannon . | . . . Launcher 1 | . 1 . Special Weapon . | . . . Impact Weapon . | . . . Slashing Weapon . | . . . Piercing Weapon . | . . . Special Melee Weapon . | . . . Unidentified Prototypes . | . . . Parts Lost 6 | . 4 2 Power . | . . . Propulsion 3 | . 2 1 Utility . | . . . Weapon 3 | . 2 1 Highest Loss Streak 1 | . 1 1 To Critical Strikes . | . . . Average Backups 11 | 2 8 14 Power 2 | . 1 3 Propulsion 3 | . 3 3 Utility 3 | . 1 6 Weapon 2 | . 2 1 Tool/Special . | . . . Unused Backups 8 | . 1 7 Power 2 | . . 2 Propulsion 3 | . 1 2 Utility 2 | . . 2 Weapon 1 | . . 1 Tool/Special . | . . . Average Slot Usage (%) 97 | . 95 99 Engine 14 | . 14 14 Leg 21 | . 14 26 Wheel 6 | . 13 . Device 8 | . 13 5 Storage 14 | . 14 14 Processor 4 | . . 8 Energy Gun 2 | . 6 . Ballistic Gun 20 | . 11 27 Launcher 3 | . 7 . Peak Build Rating 10 | 6 8 10 Average Rating 7 | 4 6 8 On Entrance 4 | . 6 8 Naked Turns . | . . . Heaviest Build 30 | 13 30 30 Greatest Support 32 | 26 32 20 Greatest Overweight (x) 2 | . 1 2 Average Overweight (x) . | . . 1 Largest Inventory Capacity 15 | 8 15 15 Average Capacity 12 | 7 10 15 Most Carried 15 | 4 15 15 Average Carried 11 | 2 8 14 Final Capacity 15 | 8 15 15 Final Carried 15 | 4 15 13 Class Distribution -------------------- 97% | Mutant Dominant Class ---------------- Mutant | -10/Materials Mutant | -10/Subcaves Resources | -11 -10 -10 ----------- Run | Yrd Mat Sub Matter Collected 685 | 247 228 210 Remotely . | . . . Salvage Created 419 | . 334 85 Parts 28 | . 24 4 Haulers Intercepted . | . . . Recyclers Shooed 1 | . 1 . Parts Field Recycled . | . . . Retrieved Matter . | . . . Parts Self-Destructed . | . . . Prevented . | . . . Kills | -11 -10 -10 ------- Run | Yrd Mat Sub Combat Hostiles Destroyed 13 | . 11 2 Guns 3 | . 1 2 AOE 10 | . 10 . Classes Destroyed 7 | . 6 1 Builder 1 | . 1 . Tunneler 1 | . 1 . Recycler 2 | . 2 . Watcher 2 | . 2 . Swarmer 6 | . 6 . Grunt 5 | . 5 . Subdweller 2 | . . 2 Best Kill Streak 4 | . 4 1 Combat Bots Only 3 | . 3 1 Max Kills in Single Turn 2 | . 2 1 Gunslinging . | . . . Exploded 2 | . 2 . Melee . | . . . Uniques/NPCs Destroyed . | . . . Combat | -11 -10 -10 -------- Run | Yrd Mat Sub Hostile Shots Fired 61 | . 22 39 Missed 13 | . 6 7 Hits 48 | . 16 32 Projectile 48 | . 16 32 Critical Strikes 3 | . 1 2 Damage Taken 1006 | . 342 664 Core 250 | . 40 210 Absorbed by Shields . | . . . Core Remaining (%) 100 | 100 . . Volleys Fired 42 | . 20 22 Largest 2 | . 2 2 Hottest 50 | . 50 45 Shots Fired 68 | . 26 42 Gun 54 | . 12 42 Cannon . | . . . Launcher 14 | . 14 . Special . | . . . Kinetic 54 | . 12 42 Thermal . | . . . Explosive 14 | . 14 . Electromagnetic . | . . . Robot Hit Streak 35 | . 6 35 Robot Miss Streak 2 | . 2 2 Penetration Max . | . . . Secondary Targets . | . . . Shots Hit Robots 47 | . 14 33 Core Hits 28 | . 22 6 Critical Kills . | . . . Critical Parts Destroyed 1 | . . 1 Critical Strikes 1 | . . 1 Destroy 1 | . . 1 Melee Attacks . | . . . Impact . | . . . Slashing . | . . . Piercing . | . . . Sneak Attacks . | . . . Combat Hostiles . | . . . Follow-up Attacks . | . . . Damage Inflicted 1264 | . 992 272 Guns 377 | . 105 272 Cannons . | . . . Explosions 887 | . 887 . Melee . | . . . Ramming . | . . . Kinetic 377 | . 105 272 Thermal . | . . . Explosive 844 | . 844 . Electromagnetic 43 | . 43 . Impact . | . . . Slashing . | . . . Piercing . | . . . Highest Corruption 5 | . 5 5 Average Corruption 4 | . 4 5 Corruption Purged . | . . . Corruption Blocked . | . . . Effects 26 | . 9 17 Message Errors 10 | . 2 8 Matter Fused 3 | . 2 1 Heat Flow Errors 4 | . 2 2 Energy Discharges 1 | . 1 . Data Loss (minor) 5 | . 1 4 Data Loss (major) 2 | . 1 1 Weapon Failures 1 | . . 1 Overload Shots . | . . . Overflow Damage 24 | . 24 . Projectiles . | . . . Explosions 24 | . 24 . Melee . | . . . Knockbacks . | . . . Impact . | . . . Kinetic . | . . . Secondary . | . . . Self-Inflicted Damage 182 | . 182 . Shots 7 | . 7 . Rammed . | . . . Targets Rammed . | . . . Kicked . | . . . Crushed . | . . . Highest Temperature 255 | . 255 143 Average Temperature 93 | . 96 82 Received Heat Transfer 60 | . 60 . Siege Activations . | . . . Martial Activations . | . . . Shielding Activations . | . . . Robots Disrupted 1 | . 1 . Combat Hostiles 1 | . 1 . Robots Corrupted . | . . . Combat Hostiles . | . . . Parts Fried . | . . . Impact Corruptions . | . . . Robots Melted . | . . . Combat Hostiles . | . . . Parts Melted . | . . . Heat Transferred . | . . . Parts Sabotaged . | . . . Parts Stolen . | . . . Parts Stripped . | . . . Power Chain Reactions . | . . . Alert | -11 -10 -10 ------- Run | Yrd Mat Sub Maximum Alert Level 1 | . 1 . Low Security (%) 84 | 100 82 . Level 1 15 | . 17 . Level 2 . | . . . Level 3 . | . . . Level 4 . | . . . Level 5 . | . . . High Security . | . . . Max Security . | . . . Peak Influence 236 | . 236 . Initial . | . . . Average 128 | . 142 . Influence Increases 446 | . 446 . Destroy 0b10 Robot/C 220 | . 220 . Destroy 0b10 Robot/NC 30 | . 30 . Destroy Leader 54 | . 54 . Successful Hack 7 | . 7 . Disable Machine 60 | . 60 . Destroy Structure 75 | . 75 . Influence Decreases 446 | . 290 156 Entered New Map 76 | . . 76 Time Decay 330 | . 250 80 Lost Part 40 | . 40 . Squads Dispatched 2 | . 2 . Investigation 1 | . 1 . Extermination . | . . . Reinforcement 1 | . 1 . Assault . | . . . Garrison . | . . . Intercept . | . . . Searches Triggered . | . . . Construction Impeded . | . . . Haulers Reinforced . | . . . Active Scanning Responses . | . . . Cargo Convoy Interrupts . | . . . Stealth | -11 -10 -10 --------- Run | Yrd Mat Sub Distress Signals 1 | . 1 . Communications Jammed . | . . . Distress Signals . | . . . Times Spotted 26 | . 22 4 Peak Tracking Total 4 | . 4 2 Tactical Retreats . | . . . Traps | -11 -10 -10 ------- Run | Yrd Mat Sub Traps Triggered 4 | . 4 . Indirectly . | . . . Trap Hack Attempts . | . . . Triggered . | . . . Disarmed . | . . . Reprogrammed . | . . . Reused . | . . . Traps Extracted . | . . . Installed . | . . . Triggered . | . . . Machines | -11 -10 -10 ---------- Run | Yrd Mat Sub Machines Disabled 4 | . 4 . Max in Single Turn 2 | . 2 . Machines Repaired . | . . . Machines Dismantled . | . . . Machines Sabotaged . | . . . Overloaded Fab Kills . | . . . Hacking | -11 -10 -10 --------- Run | Yrd Mat Sub Machines Accessed 2 | . 2 . Terminals 2 | . 2 . Fabricators . | . . . Repair Stations . | . . . Recycling Units . | . . . Scanalyzers . | . . . Garrison Access . | . . . Total Hacks 9 | . 9 . Successful 4 | . 4 . Failed 5 | . 5 . Catastrophic . | . . . Database Lockouts . | . . . Manual . | . . . Terminals 9 | . 9 . Fabricators . | . . . Repair Stations . | . . . Recycling Units . | . . . Scanalyzers . | . . . Garrison Access . | . . . Terminal Hacks 4 | . 4 . Prototype ID Bank 1 | . 1 . Hauler Manifests 1 | . 1 . Registered Components 1 | . 1 . Zone Layout 1 | . 1 . Fabricator Hacks . | . . . Repair Station Hacks . | . . . Recycling Unit Hacks . | . . . Scanalyzer . | . . . Garrison Access Hacks . | . . . Unauthorized Hacks . | . . . Terminals . | . . . Fabricators . | . . . Repair Stations . | . . . Recycling Units . | . . . Scanalyzers . | . . . Garrison Access . | . . . Data Cores Recovered . | . . . Used . | . . . Hacking Detections 2 | . 2 . Full Trace Events 1 | . 1 . Feedback Events . | . . . Feedback Blocked . | . . . Robot Schematics Acquired . | . . . Robots Built . | . . . Authchips . | . . . Time . | . . . Total Robot Build Rating . | . . . Part Schematics Acquired . | . . . Parts Built . | . . . Authchips . | . . . Time . | . . . Total Part Build Rating . | . . . Parts Repaired . | . . . Time . | . . . Parts Recycled . | . . . Recycled Matter . | . . . Retrieved Matter . | . . . Retrieved Components . | . . . Parts Scanalyzed . | . . . Part Schematics Acquired . | . . . Parts Damaged . | . . . Bothacking | -11 -10 -10 ------------ Run | Yrd Mat Sub Used RIF Installer . | . . . Robots Hacked . | . . . Non-combat . | . . . Combat . | . . . Robot Hacks Applied . | . . . Relay Couplers Released . | . . . Fabnet Peak Effective % . | . . . Robots Rewired . | . . . Allies Hacked . | . . . Hacks Repelled . | . . . Allies | -11 -10 -10 -------- Run | Yrd Mat Sub Total Allies . | . . . Largest Group . | . . . Highest-Rated Group . | . . . Highest-Rated Ally . | . . . Total Orders . | . . . Ally Attacks . | . . . Total Damage . | . . . Kills . | . . . Allies Corrupted . | . . . Allies Melted . | . . . Intel | -11 -10 -10 ------- Run | Yrd Mat Sub Active Infowar (turns) 805 | . 569 236 Sensors 197 | . . 197 Terrain 39 | . . 39 Structural 569 | . 569 . Robot Analysis Total . | . . . Derelict Logs Recovered . | . . . Drone Launches . | . . . Drone Recoveries . | . . . Exploration | -11 -10 -10 ------------- Run | Yrd Mat Sub Turns Passed 1324 | 67 589 668 Spaces Moved 762 | 60 393 309 Core 1 | 1 . . Treads . | . . . Legs 493 | . 184 309 Wheels 268 | 59 209 . Hover . | . . . Flight . | . . . Fastest Speed 50 | 50 90 190 Average Speed 147 | 89 122 190 Slowest Speed 260 | 100 190 260 Overloaded Moves . | . . . Propulsion Burnouts . | . . . Robots Hopped . | . . . Potential Cave-ins . | . . . Cave-ins Triggered . | . . . Exploration Rate (%) 34 | 3 74 25 Regions Visited 2 Branch Regions 1 Pre-discovered Areas . | . . . Known Exits Taken . | . . . Unknown Exits Taken 2 | 1 1 . Scrap Searched 3 | . . 3 Spaces Dug . | . . . Terrain Destroyed 74 | . 74 . Melee . | . . . Projectile . | . . . AOE 74 | . 74 . Terrain Rammed . | . . . Walls Destroyed . | . . . Machines Disabled . | . . . Actions | -11 -10 -10 --------- Run | Yrd Mat Sub Total 891 | 69 475 347 Wait 38 | . 32 6 Move 760 | 59 392 309 Hop . | . . . Pick Up 18 | 4 12 2 Fast Attach 10 | 6 4 . Attach 4 | . 2 2 Detach . | . . . Swap 11 | . 7 4 Drop 8 | . 6 2 Fire 42 | . 20 22 Melee . | . . . Ram . | . . . Kick . | . . . Crush . | . . . Escape Stasis . | . . . Rewire . | . . . Trap . | . . . Miscellaneous . | . . . Route ------- -11/Scrapyard -10/Materials (discovered 4 exits: [*Mat x2] / [Min] / [*Sub]) -10/Subcaves (discovered 1 exit: *Mat) History --------- Turn | Location | Event 23 | -11/Scrapyard | Discovered new exit (range 16) 68 | -11/Scrapyard | Entered Materials 154 | -10/Materials | Discovered new exit (range 16) 251 | -10/Materials | Discovered new exit (range 12) 275 | -10/Materials | Discovered new exit (range 12) 304 | -10/Materials | Build established: Mutant 635 | -10/Materials | Discovered new exit (range 16) 657 | -10/Materials | Entered Subcaves 658 | -10/Subcaves | Approached by a straggling Scientist 880 | -10/Subcaves | Discovered new exit (range 8) 894 | -10/Subcaves | Identified exit to Materials 1308 | -10/Subcaves | Core integrity fell below 50% 1317 | -10/Subcaves | Core integrity fell below 20% 1325 | -10/Subcaves | Destroyed by MQ-RDC(R) with Subdweller Machine Gun Last Messages --------------- 01069_ Found Sub. Monowheel. 01069_ Found 52 Matter. 01075_ Searching scrap... 01075_ Found Sub. Beam Cannon. 01075_ Found Sub. Power Source. 01075_ Found 60 Matter. 01094_ Subatomizers dissect the Wheel. 01115_ Subatomizers dissect the Wheel, destroying it. 01140_ Subatomizers dissect the Sub. Machine Gun. 01163_ NU T<7TN8KMEMPQT MQ:3X&YGSBPUUIVL#KN 01202_ System corrupted: Component data lost. 01253_ CWVQL